fUSD/lending_fUSD_20260327
["ID","MTS","AMOUNT","RATE_DAILY","PERIOD"]
[418941513,1774608666881,-12741.0822,0.00044325,30]
[418941514,1774608666891,-825.0,0.00044332,120]
[418941515,1774608666901,-150.0,0.00044381,30]
[418941516,1774608666911,-500.0,0.00044383,2]
[418941517,1774608666921,-500.0,0.00044383,17]
[418941518,1774608666931,-1899.68,0.00044383,17]
[418941519,1774608666940,-500.0,0.00044383,17]
[418941520,1774608666950,-834.92,0.00044383,17]
[418941521,1774608666960,-500.0,0.00044383,17]
[418941522,1774608666970,-560.56715233,0.00044383,17]
[418941523,1774608666980,-769.18,0.00044383,17]
[418941524,1774608666991,-599.91,0.00044383,17]
[418941525,1774608667001,-1776.5,0.00044383,7]
[418941526,1774608667011,-1046.23,0.00044383,17]
[418941527,1774608667021,-644.38,0.00044383,17]
[418941528,1774608667031,-500.0,0.00044383,17]
[418941529,1774608667041,-500.0,0.00044383,17]
[418941530,1774608667050,-500.0,0.00044383,17]
[418941531,1774608667060,-320.61637446,0.00044383,17]
[418941532,1774608667070,-675.1,0.00044383,17]
[418941533,1774608667079,-500.0,0.00044383,17]
[418941534,1774608667089,-500.0,0.00044383,17]
[418941535,1774608667098,-500.0,0.00044383,17]
[418941536,1774608667108,-500.0,0.00044383,17]
[418941537,1774608667118,-544.31,0.00044383,17]
[418941538,1774608667128,-500.0,0.00044383,17]
[418941539,1774608667138,-500.0,0.00044383,17]
[418941540,1774608667148,-4207.98,0.00044383,7]
[418941541,1774608667158,-607.68,0.00044383,17]
[418941542,1774608667168,-896.56,0.00044383,2]
[418941543,1774608667178,-500.0,0.00044383,17]
[418941544,1774608667188,-500.0,0.00044383,16]
[418941545,1774608667200,-200.45899352,0.00044383,17]
[418941546,1774608667217,-703.06,0.00044383,14]
[418941547,1774608667227,-500.0,0.00044383,17]
[418941548,1774608667237,-500.0,0.00044383,17]
[418941549,1774608667247,-1046.48,0.00044383,17]
[418941550,1774608667257,-500.0,0.00044383,17]
[418941551,1774608667267,-1029.04,0.00044383,17]
[418941552,1774608667277,-500.0,0.00044383,17]
[418941553,1774608667287,-886.25,0.00044383,17]
[418941554,1774608667297,-1256.36,0.00044383,17]
[418941555,1774608667308,-2247.38,0.00044383,7]
[418941556,1774608667318,-500.0,0.00044383,17]
[418941557,1774608667328,-946.55,0.00044383,17]
[418941558,1774608667338,-500.0,0.00044383,17]
[418941559,1774608667348,-2089.37,0.00044383,17]
[418941560,1774608667359,-500.0,0.00044383,17]
[418941561,1774608667369,-515.44,0.00044383,2]
[418941562,1774608667379,-837.81,0.00044383,17]
[418941563,1774608667389,-621.06,0.00044383,2]
[418941564,1774608667399,-576.87,0.00044383,17]
[418941565,1774608667409,-7395.44,0.00044383,2]
[418941566,1774608667419,-854.0,0.00044384,120]
[418941567,1774608667429,-729.49,0.00044384,120]
[418941568,1774608667439,-747916.24041885,0.000444,120]
[418941569,1774608667449,-2000000.0,0.000444,120]
[418941570,1774608667460,-4000000.0,0.000444,120]
[418941571,1774608667470,-12252.73522266,0.000444,5]
[418941572,1774608667479,-329.88516379,0.000444,30]
[418941573,1774608667490,-150.0,0.00044413,30]
[418941574,1774608667500,-2798.86,0.000445,120]
[418941575,1774608667509,-5026.58,0.000445,120]
[418941576,1774608667519,-150.0,0.00044507,30]
[418941577,1774608667529,-150.0,0.00044524,30]
[418941578,1774608667539,-150.0,0.00044524,30]
[418941579,1774608667549,-5730.28283205,0.00044545,60]
[418941580,1774608667559,-150.0,0.00044551,30]
[418941581,1774608667570,-152.0,0.000446,120]
[418941582,1774608667579,-150.0,0.00044604,30]
[418941583,1774608667590,-150.0,0.00044634,30]
[418941584,1774608667600,-150.0,0.00044653,30]
[418941585,1774608667610,-463.0,0.00044657,2]
[418941586,1774608667621,-500.0,0.00044657,17]
[418941587,1774608667631,-1899.68,0.00044657,17]
[418941588,1774608667642,-500.0,0.00044657,17]
[418941589,1774608667652,-834.92,0.00044657,17]
[418941590,1774608667793,-500.0,0.00044657,17]
[418941591,1774608667803,-769.18,0.00044657,17]
[418941592,1774608667813,-599.91,0.00044657,17]
[418941593,1774608667822,-1776.5,0.00044657,7]
[418941594,1774608667832,-1046.23,0.00044657,17]
[418941595,1774608667842,-644.38,0.00044657,17]
[418941596,1774608667851,-500.0,0.00044657,17]
[418941597,1774608667861,-575.74183693,0.00044657,17]
[418941598,1774608667871,-500.0,0.00044657,17]
[418941599,1774608667880,-675.1,0.00044657,17]
[418941600,1774608667890,-500.0,0.00044657,17]
[418941601,1774608667899,-500.0,0.00044657,17]
[418941602,1774608667908,-500.0,0.00044657,17]
[418941603,1774608667917,-500.0,0.00044657,17]
[418941604,1774608667926,-544.31,0.00044657,17]
[418941605,1774608667935,-500.0,0.00044657,17]
[418941606,1774608667945,-500.0,0.00044657,17]
[418941607,1774608667955,-4207.98,0.00044657,7]
[418941608,1774608667967,-607.68,0.00044657,17]
[418941609,1774608667977,-896.56,0.00044657,2]
[418941610,1774608667987,-500.0,0.00044657,17]
[418941611,1774608667997,-500.0,0.00044657,16]
[418941612,1774608668007,-703.06,0.00044657,14]
[418941613,1774608668018,-500.0,0.00044657,17]
[418941614,1774608668027,-500.0,0.00044657,17]
[418941615,1774608668037,-1046.48,0.00044657,17]
[418941616,1774608668047,-500.0,0.00044657,17]
[418941617,1774608668056,-1029.04,0.00044657,17]
[418941618,1774608668065,-500.0,0.00044657,17]
[418941619,1774608668075,-886.25,0.00044657,17]
[418941620,1774608668084,-1256.36,0.00044657,17]
[418941621,1774608668095,-2247.38,0.00044657,7]
[418941622,1774608668104,-500.0,0.00044657,17]
[418941623,1774608668114,-946.55,0.00044657,17]
[418941624,1774608668123,-556.22758864,0.00044657,17]
[418941625,1774608668133,-2089.37,0.00044657,17]
[418941626,1774608668142,-500.0,0.00044657,17]
[418941627,1774608668152,-515.44,0.00044657,2]
[418941628,1774608668161,-837.81,0.00044657,17]
[418941629,1774608668171,-621.06,0.00044657,2]
[418941630,1774608668180,-576.87,0.00044657,17]
[418941631,1774608668190,-729.49,0.00044658,120]
[418941632,1774608668199,-150.0,0.00044689,120]
[418941633,1774608668209,-1200.0,0.00044725,120]
[418941634,1774608668219,-700.0,0.00044725,120]
[418941635,1774608668229,-150.0,0.00044744,30]
[418941636,1774608668239,-150.0,0.00044744,30]
[418941637,1774608668248,-150.0,0.00044744,30]
[418941638,1774608668258,-240049.39742974,0.00044782,61]
[418941639,1774608668267,-366.36045695,0.000448,120]
[418941640,1774608668277,-10000.0,0.000448,30]
[418941641,1774608668287,-283.2973845,0.00044824,2]
[418941642,1774608668297,-150.0,0.00044841,30]
[418941643,1774608668307,-150.0,0.00044854,30]
[418941644,1774608668317,-150.0,0.00044863,30]
[418941645,1774608668326,-190.91856375,0.0004489,120]
[418941646,1774608668336,-1444.59003062,0.000449,30]
[418941647,1774608668345,-1500.0,0.000449,16]
[418941648,1774608668355,-150.0,0.00044926,30]
[418941649,1774608668365,-500.0,0.00044931,17]
[418941650,1774608668375,-1899.68,0.00044931,17]
[418941651,1774608668385,-500.0,0.00044931,17]
[418941652,1774608668395,-834.92,0.00044931,17]
[418941653,1774608668404,-500.0,0.00044931,17]
[418941654,1774608668414,-769.18,0.00044931,17]
[418941655,1774608668423,-599.91,0.00044931,17]
[418941656,1774608668432,-1776.5,0.00044931,7]
[418941657,1774608668441,-1046.23,0.00044931,17]
[418941658,1774608668452,-644.38,0.00044931,17]
[418941659,1774608668465,-500.0,0.00044931,17]
[418941660,1774608668474,-500.0,0.00044931,17]
[418941661,1774608668483,-675.1,0.00044931,17]
[418941662,1774608668492,-323.27868234,0.00044931,17]
[418941663,1774608668502,-500.0,0.00044931,17]
[418941664,1774608668511,-500.0,0.00044931,17]
[418941665,1774608668520,-500.0,0.00044931,17]
[418941666,1774608668530,-544.31,0.00044931,17]
[418941667,1774608668539,-500.0,0.00044931,17]
[418941668,1774608668549,-500.0,0.00044931,17]
[418941669,1774608668559,-4207.98,0.00044931,7]
[418941670,1774608668569,-607.68,0.00044931,17]
[418941671,1774608668579,-896.56,0.00044931,2]
[418941672,1774608668589,-500.0,0.00044931,17]
[418941673,1774608668600,-500.0,0.00044931,16]
[418941674,1774608668610,-703.06,0.00044931,14]
[418941675,1774608668620,-500.0,0.00044931,17]
[418941676,1774608668630,-1046.48,0.00044931,17]
[418941677,1774608668640,-500.0,0.00044931,17]
[418941678,1774608668649,-1029.04,0.00044931,17]
[418941679,1774608668659,-500.0,0.00044931,17]
[418941680,1774608668669,-886.25,0.00044931,17]
[418941681,1774608668678,-1256.36,0.00044931,17]
[418941682,1774608668687,-2247.38,0.00044931,7]
[418941683,1774608668697,-500.0,0.00044931,17]
[418941684,1774608668707,-946.55,0.00044931,17]
[418941685,1774608668717,-2089.37,0.00044931,17]
[418941686,1774608668727,-500.0,0.00044931,17]
[418941687,1774608668738,-515.44,0.00044931,2]
[418941688,1774608668748,-837.81,0.00044931,17]
[418941689,1774608668758,-621.06,0.00044931,2]
[418941690,1774608668768,-576.87,0.00044931,17]
[418941691,1774608668778,-295.69,0.00044932,120]
[418941692,1774608668788,-151.0,0.00044932,120]
[418941693,1774608668798,-151.0,0.00044932,120]
[418941694,1774608668807,-151.0,0.00044932,120]
[418941695,1774608668817,-151.0,0.00044932,120]
[418941696,1774608668827,-151.0,0.00044932,120]
[418941697,1774608668837,-258.275499,0.00044932,120]
[418941698,1774608668846,-500.0,0.00044932,120]
[418941699,1774608668857,-500.0,0.00044932,120]
[418941700,1774608668867,-500.0,0.00044932,120]
[418941701,1774608668879,-500.0,0.00044932,120]
[418941702,1774608668889,-500.0,0.00044932,120]
[418941703,1774608668899,-500.0,0.00044932,120]
[418941704,1774608668909,-500.0,0.00044932,120]
[418941705,1774608668919,-500.0,0.00044932,120]
[418941706,1774608668928,-500.0,0.00044932,120]
[418941707,1774608668938,-500.0,0.00044932,120]
[418941708,1774608668948,-500.0,0.00044932,120]
[418941709,1774608668957,-500.0,0.00044932,120]
[418941710,1774608668967,-500.0,0.00044932,120]
[418941711,1774608668976,-500.0,0.00044932,120]
[418941712,1774608668986,-500.0,0.00044932,120]
[418941713,1774608668996,-500.0,0.00044932,120]
[418941714,1774608669005,-500.0,0.00044932,120]
[418941715,1774608669015,-500.0,0.00044932,120]
[418941716,1774608669024,-500.0,0.00044932,120]
[418941717,1774608669034,-500.0,0.00044932,120]
[418941718,1774608669043,-939.000553,0.00044932,5]
[418941719,1774608669053,-939.000553,0.00044932,5]
[418941720,1774608669062,-939.000553,0.00044932,5]
[418941721,1774608669071,-939.000553,0.00044932,5]
[418941722,1774608669081,-939.000553,0.00044932,5]
[418941723,1774608669090,-939.000553,0.00044932,5]
[418941724,1774608669099,-939.000553,0.00044932,5]
[418941725,1774608669109,-939.000553,0.00044932,5]
[418941726,1774608669118,-939.000553,0.00044932,5]
[418941727,1774608669128,-939.000553,0.00044932,5]
[418941728,1774608669138,-939.000553,0.00044932,5]
[418941729,1774608669147,-939.000553,0.00044932,5]
[418941730,1774608669156,-939.000553,0.00044932,5]
[418941731,1774608669166,-939.000553,0.00044932,5]
[418941732,1774608669176,-939.000553,0.00044932,5]
[418941733,1774608669185,-939.000553,0.00044932,5]
[418941734,1774608669194,-939.000553,0.00044932,5]
[418941735,1774608669203,-939.000553,0.00044932,5]
[418941736,1774608669213,-939.000553,0.00044932,5]
[418941737,1774608669223,-939.000554,0.00044932,5]
[418941738,1774608669233,-151.0,0.00044932,120]
[418941739,1774608669243,-151.088335,0.00044932,120]
[418941740,1774608669252,-204.837899,0.00044932,120]
[418941741,1774608669262,-154.018962,0.00044932,120]
[418941742,1774608669271,-275.948003,0.00044932,120]
[418941743,1774608669281,-211.916459,0.00044932,120]
[418941744,1774608669290,-229.006412,0.00044932,120]
[418941745,1774608669300,-1516.711279,0.00044932,120]
[418941746,1774608669310,-1516.711279,0.00044932,120]
[418941747,1774608669319,-1516.711279,0.00044932,120]
[418941748,1774608669330,-1516.711279,0.00044932,120]
[418941749,1774608669339,-1516.711279,0.00044932,120]
[418941750,1774608669348,-1516.711279,0.00044932,120]
[418941751,1774608669358,-1516.711279,0.00044932,120]
[418941752,1774608669368,-1516.711279,0.00044932,120]
[418941753,1774608669378,-1516.711279,0.00044932,120]
[418941754,1774608669387,-1516.711279,0.00044932,120]
[418941755,1774608669397,-1516.711279,0.00044932,120]
[418941756,1774608669407,-1516.711279,0.00044932,120]
[418941757,1774608669417,-1516.711279,0.00044932,120]
[418941758,1774608669426,-1516.711279,0.00044932,120]
[418941759,1774608669436,-1516.711279,0.00044932,120]
[418941760,1774608669446,-1516.711279,0.00044932,120]
[418941761,1774608669455,-1516.711279,0.00044932,120]
[418941762,1774608669467,-1516.711279,0.00044932,120]
[418941763,1774608669476,-1516.711279,0.00044932,120]
[418941764,1774608669486,-1516.711273,0.00044932,120]
[418941765,1774608669497,-156.843171,0.00044932,120]
[418941766,1774608669507,-202.4838,0.00044932,120]
[418941767,1774608669516,-202.4838,0.00044932,120]
[418941768,1774608669526,-202.4838,0.00044932,120]
[418941769,1774608669536,-202.4838,0.00044932,120]
[418941770,1774608669546,-202.4838,0.00044932,120]
[418941771,1774608669556,-202.4838,0.00044932,120]
[418941772,1774608669566,-202.4838,0.00044932,120]
[418941773,1774608669576,-202.4838,0.00044932,120]
[418941774,1774608669586,-202.4838,0.00044932,120]
[418941775,1774608669596,-202.4838,0.00044932,120]
[418941776,1774608669606,-202.4838,0.00044932,120]
[418941777,1774608669615,-202.4838,0.00044932,120]
[418941778,1774608669625,-202.4838,0.00044932,120]
[418941779,1774608669635,-202.4838,0.00044932,120]
[418941780,1774608669644,-202.4838,0.00044932,120]
[418941781,1774608669654,-202.4838,0.00044932,120]
[418941782,1774608669663,-202.4838,0.00044932,120]
[418941783,1774608669672,-202.4838,0.00044932,120]
[418941784,1774608669681,-202.4838,0.00044932,120]
[418941785,1774608669691,-202.4838,0.00044932,120]
[418941786,1774608669700,-729.49,0.00044932,120]
[418941787,1774608669710,-206.0,0.0004496,30]
[418941788,1774608669720,-150.0,0.00044965,30]
[418941789,1774608669730,-150.0,0.00044965,30]
[418941790,1774608669739,-2854.84,0.00045,120]
[418941791,1774608669749,-191.02519326,0.00045,120]
[418941792,1774608669759,-252.46435879,0.00045,120]
[418941793,1774608669769,-231.40840627,0.00045,120]
[418941794,1774608669779,-192.74379099,0.00045,120]
[418941795,1774608669788,-49000.0,0.00045,30]
[418941796,1774608669798,-1204.87,0.00045,120]
[418941797,1774608669808,-5127.1,0.00045,120]
[418941798,1774608669818,-182.99776964,0.00045,120]
[418941799,1774608669827,-10749.0,0.00045,120]
[418941800,1774608669836,-159.09904129,0.00045,30]
[418941801,1774608669846,-3158.70337353,0.00045,120]
[418941802,1774608669856,-165.65940343,0.00045,30]
[418941803,1774608669866,-150.0,0.00045,85]
[418941804,1774608669876,-5136.17,0.00045,120]
[418941805,1774608669886,-30000.0,0.00045,30]
[418941806,1774608669895,-176.74505201,0.00045,120]
[418941807,1774608669905,-414.42985883,0.00045,30]
[418941808,1774608669914,-150.49,0.00045,120]
[418941809,1774608669924,-183.63931269,0.00045,2]
[418941810,1774608669934,-23579.64306976,0.00045,120]
[418941811,1774608669944,-2051.3068771,0.00045,120]
[418941812,1774608669954,-2114.0,0.00045,30]
[418941813,1774608669965,-20165.69417299,0.00045,2]
[418941814,1774608669974,-382.22,0.00045,120]
[418941815,1774608669984,-715.99,0.00045,120]
[418941816,1774608669994,-327.31,0.00045,120]
[418941817,1774608670004,-426.07,0.00045,120]
[418941818,1774608670014,-260415.0,0.00045,60]
[418941819,1774608670030,-193.08,0.00045,120]
[418941820,1774608670040,-3830.15281288,0.00045,30]
[418941821,1774608670050,-150.0,0.00045025,30]
[418941822,1774608670061,-150.0,0.00045075,30]
[418941823,1774608670070,-213.53,0.000451,19]
[418941824,1774608670080,-170.2623769,0.000451,120]
[418941825,1774608670090,-2000.0,0.000451,2]
[418941826,1774608670100,-150.0,0.0004513,30]
[418941827,1774608670110,-150.0,0.0004513,30]
[418941828,1774608670120,-189.56,0.00045133,30]
[418941829,1774608670130,-150.0,0.00045185,30]
[418941830,1774608670141,-150.0,0.00045185,30]
[418941831,1774608670150,-150.0,0.00045198,30]
[418941832,1774608670159,-314984.35,0.000452,7]
[418941833,1774608670169,-6943.65,0.000452,15]
[418941834,1774608670179,-200.0,0.00045202,120]
[418941835,1774608670189,-729.49,0.00045205,120]
[418941836,1774608670198,-500.0,0.00045205,17]
[418941837,1774608670208,-1899.68,0.00045205,17]
[418941838,1774608670218,-500.0,0.00045205,17]
[418941839,1774608670228,-834.92,0.00045205,17]
[418941840,1774608670238,-500.0,0.00045205,17]
[418941841,1774608670248,-769.18,0.00045205,17]
[418941842,1774608670258,-599.91,0.00045205,17]
[418941843,1774608670268,-1776.5,0.00045205,7]
[418941844,1774608670277,-1046.23,0.00045205,17]
[418941845,1774608670287,-644.38,0.00045205,17]
[418941846,1774608670297,-433.59177199,0.00045205,17]
[418941847,1774608670307,-169.94339611,0.00045205,120]
[418941848,1774608670317,-500.0,0.00045205,17]
[418941849,1774608670327,-675.1,0.00045205,17]
[418941850,1774608670337,-231.71281912,0.00045205,17]
[418941851,1774608670348,-500.0,0.00045205,17]
[418941852,1774608670359,-500.0,0.00045205,17]
[418941853,1774608670369,-544.31,0.00045205,17]
[418941854,1774608670379,-500.0,0.00045205,17]
[418941855,1774608670390,-500.0,0.00045205,17]
[418941856,1774608670401,-4207.98,0.00045205,7]
[418941857,1774608670411,-607.68,0.00045205,17]
[418941858,1774608670421,-896.56,0.00045205,2]
[418941859,1774608670432,-500.0,0.00045205,17]
[418941860,1774608670442,-500.0,0.00045205,16]
[418941861,1774608670452,-703.06,0.00045205,14]
[418941862,1774608670463,-500.0,0.00045205,17]
[418941863,1774608670472,-1046.48,0.00045205,17]
[418941864,1774608670482,-500.0,0.00045205,17]
[418941865,1774608670492,-1029.04,0.00045205,17]
[418941866,1774608670503,-500.0,0.00045205,17]
[418941867,1774608670513,-886.25,0.00045205,17]
[418941868,1774608670523,-1256.36,0.00045205,17]
[418941869,1774608670532,-2247.38,0.00045205,7]
[418941870,1774608670542,-253.9434252,0.00045205,17]
[418941871,1774608670553,-946.55,0.00045205,17]
[418941872,1774608670564,-2089.37,0.00045205,17]
[418941873,1774608670574,-500.0,0.00045205,17]
[418941874,1774608670584,-192.03573417,0.00045205,120]
[418941875,1774608670594,-515.44,0.00045205,2]
[418941876,1774608670604,-837.81,0.00045205,17]
[418941877,1774608670614,-621.06,0.00045205,2]
[418941878,1774608670624,-576.87,0.00045205,17]
[418941879,1774608670633,-450.0,0.00045205,30]
[418941880,1774608670643,-450.0,0.00045205,30]
[418941881,1774608670652,-374.0,0.00045205,30]
[418941882,1774608670663,-150.0,0.00045219,30]
[418941883,1774608670672,-150.0,0.00045295,30]
[418941884,1774608670682,-2000000.0,0.000454,120]
[418941885,1774608670692,-10000.0,0.000454,30]
[418941886,1774608670702,-200.0,0.000454,120]
[418941887,1774608670713,-15000.0,0.000454,120]
[418941888,1774608670723,-150.0,0.00045405,30]
[418941889,1774608670733,-150.0,0.00045405,30]
[418941890,1774608670743,-150.0,0.00045419,30]
[418941891,1774608670753,-2000.0,0.00045422,2]
[418941892,1774608670763,-150.0,0.00045445,30]
[418941893,1774608670773,-150.0,0.0004547,30]
[418941894,1774608670783,-729.49,0.00045479,120]
[418941895,1774608670793,-500.0,0.00045479,17]
[418941896,1774608670802,-1899.68,0.00045479,17]
[418941897,1774608670811,-500.0,0.00045479,17]
[418941898,1774608670821,-834.92,0.00045479,17]
[418941899,1774608670831,-500.0,0.00045479,17]
[418941900,1774608670841,-769.18,0.00045479,17]
[418941901,1774608670850,-599.91,0.00045479,17]
[418941902,1774608670860,-1776.5,0.00045479,7]
[418941903,1774608670869,-1046.23,0.00045479,17]
[418941904,1774608670879,-644.38,0.00045479,17]
[418941905,1774608670889,-675.1,0.00045479,17]
[418941906,1774608670899,-500.0,0.00045479,17]
[418941907,1774608670908,-500.0,0.00045479,17]
[418941908,1774608670918,-544.31,0.00045479,17]
[418941909,1774608670928,-500.0,0.00045479,17]
[418941910,1774608670937,-187.65840703,0.00045479,17]
[418941911,1774608670947,-4207.98,0.00045479,7]
[418941912,1774608670957,-607.68,0.00045479,17]
[418941913,1774608670967,-896.56,0.00045479,2]
[418941914,1774608670977,-500.0,0.00045479,17]
[418941915,1774608670986,-500.0,0.00045479,16]
[418941916,1774608670996,-703.06,0.00045479,14]
[418941917,1774608671006,-500.0,0.00045479,17]
[418941918,1774608671016,-1046.48,0.00045479,17]
[418941919,1774608671026,-500.0,0.00045479,17]
[418941920,1774608671035,-1029.04,0.00045479,17]
[418941921,1774608671045,-500.0,0.00045479,17]
[418941922,1774608671055,-886.25,0.00045479,17]
[418941923,1774608671066,-1256.36,0.00045479,17]
[418941924,1774608671076,-2247.38,0.00045479,7]
[418941925,1774608671086,-946.55,0.00045479,17]
[418941926,1774608671097,-2089.37,0.00045479,17]
[418941927,1774608671107,-500.0,0.00045479,17]
[418941928,1774608671117,-515.44,0.00045479,2]
[418941929,1774608671127,-837.81,0.00045479,17]
[418941930,1774608671137,-621.06,0.00045479,2]
[418941931,1774608671147,-576.87,0.00045479,17]
[418941932,1774608671157,-2911.93,0.000455,120]
[418941933,1774608671166,-5229.64,0.000455,120]
[418941934,1774608671175,-153.0,0.000455,120]
[418941935,1774608671324,-348749.645071,0.000455,120]
[418941936,1774608671334,-4352.78,0.000455,120]
[418941937,1774608671344,-1778.00173618,0.000455,7]
[418941938,1774608671355,-150.0,0.00045516,30]
[418941939,1774608671365,-150.0,0.00045516,30]
[418941940,1774608671375,-9999.99999901,0.00045522,120]
[418941941,1774608671384,-143599.21827604,0.00045556,30]
[418941942,1774608671394,-150.0,0.00045575,30]
[418941943,1774608671404,-150.0,0.00045626,30]
[418941944,1774608671414,-150.0,0.00045626,30]
[418941945,1774608671424,-1604.5767,0.00045645,30]
[418941946,1774608671433,-150.0,0.00045658,120]
[418941947,1774608671442,-17286.0318086,0.0004567,120]
[418941948,1774608671452,-174.7731674,0.00045679,120]
[418941949,1774608671462,-1827.11,0.0004569,120]
[418941950,1774608671471,-500000.0,0.000457,120]
[418941951,1774608671480,-500000.0,0.000457,120]
[418941952,1774608671489,-500000.0,0.000457,120]
[418941953,1774608671498,-500000.0,0.000457,120]
[418941954,1774608671508,-150.0,0.00045708,30]
[418941955,1774608671518,-150.0,0.00045736,30]
[418941956,1774608671529,-150.0,0.00045742,30]
[418941957,1774608671540,-729.49,0.00045753,120]
[418941958,1774608671549,-500.0,0.00045753,17]
[418941959,1774608671559,-500.0,0.00045753,17]
[418941960,1774608671569,-1899.68,0.00045753,17]
[418941961,1774608671579,-500.0,0.00045753,17]
[418941962,1774608671589,-834.92,0.00045753,17]
[418941963,1774608671598,-500.0,0.00045753,17]
[418941964,1774608671607,-769.18,0.00045753,17]
[418941965,1774608671617,-599.91,0.00045753,17]
[418941966,1774608671627,-1776.5,0.00045753,7]
[418941967,1774608671637,-1046.23,0.00045753,17]
[418941968,1774608671646,-644.38,0.00045753,17]
[418941969,1774608671656,-675.1,0.00045753,17]
[418941970,1774608671666,-500.0,0.00045753,17]
[418941971,1774608671676,-500.0,0.00045753,17]
[418941972,1774608671685,-544.31,0.00045753,17]
[418941973,1774608671694,-500.0,0.00045753,17]
[418941974,1774608671708,-4207.98,0.00045753,7]
[418941975,1774608671719,-607.68,0.00045753,17]
[418941976,1774608671729,-896.56,0.00045753,2]
[418941977,1774608671740,-500.0,0.00045753,17]
[418941978,1774608671750,-491.0670745,0.00045753,16]
[418941979,1774608671760,-703.06,0.00045753,14]
[418941980,1774608671770,-500.0,0.00045753,17]
[418941981,1774608671780,-1046.48,0.00045753,17]
[418941982,1774608671790,-500.0,0.00045753,17]
[418941983,1774608671800,-1029.04,0.00045753,17]
[418941984,1774608671809,-500.0,0.00045753,17]
[418941985,1774608671819,-886.25,0.00045753,17]
[418941986,1774608671829,-1256.36,0.00045753,17]
[418941987,1774608671838,-2247.38,0.00045753,7]
[418941988,1774608671848,-946.55,0.00045753,17]
[418941989,1774608671858,-2089.37,0.00045753,17]
[418941990,1774608671869,-500.0,0.00045753,17]
[418941991,1774608671879,-515.44,0.00045753,2]
[418941992,1774608671889,-837.81,0.00045753,17]
[418941993,1774608671899,-621.06,0.00045753,2]
[418941994,1774608671908,-576.87,0.00045753,17]
[418941995,1774608671917,-292.67755601,0.00045765,18]
[418941996,1774608671927,-10000.0,0.00045793,120]
[418941997,1774608671936,-1000.0,0.000458,30]
[418941998,1774608671945,-1000.0,0.000458,120]
[418941999,1774608671959,-1000.0,0.000458,120]
[418942000,1774608671970,-1000.0,0.000458,120]
[418942001,1774608671979,-400.29,0.000458,120]
[418942002,1774608671989,-2456.0,0.000458,120]
[418942003,1774608671998,-279.4,0.000458,30]
[418942004,1774608672009,-15041.0,0.000458,120]
[418942005,1774608672018,-10000.0,0.000458,30]
[418942006,1774608672027,-756.39540328,0.000458,120]
[418942007,1774608672037,-150.0,0.00045805,120]
[418942008,1774608672047,-582.27017629,0.00045821,120]
[418942009,1774608672056,-171.64415539,0.00045821,120]
[418942010,1774608672066,-150.0,0.00045846,30]
[418942011,1774608672075,-150.0,0.00045846,30]
[418942012,1774608672085,-150.0,0.00045866,30]